Cogmind - Beta 15 @@@ ROGUE MODE // 2025.06.03 @ 19:46:47 Player: SUBSUB Result: Destroyed by Y-54 Guardian with Gatling Laser Performance ------------- Evolutions (3) 1500 Regions Visited (8) 1600 Robots Destroyed (149) 745 Value Destroyed (4548) 4548 Prototype IDs (12) 240 Alien Tech Used (0) 0 Bonus (953) 953 TOTAL SCORE: 9586 Bonus ------- High Alert Combat Kills 218 Follower Combat Kills 35 Entered Garrisons 200 Used RIF Installer 500 Cogmind --------- Core Integrity 0/700 Matter 382/500 Energy 300/300 System Corruption 9% Temperature Hot (267) Movement Treading (317) Ox2 Location -7/Factory Parts ------- > --- POWER (1) -------- Enhanced Nuclear Core > --- PROPULSION (4) --- Armored Treads Advanced Treads Armored Huge Wheel > --- UTILITY (6) ------ Huge Storage Unit High-capacity Matter Pod Improved Sensor Array Improved Signal Interpreter Experimental Targeting Computer Target Analyzer > --- WEAPON (2) ------- Autogun Autogun > --- INVENTORY (25) --- Micro Nuclear Core Light Treads Advanced Treads Matter Filter Transmission Jammer Hardened Medium Armor Plating Improved Light Armor Plating Improved Shield Generator Hacking Suite Relay Coupler [NC] (31) Relay Coupler [Grunt] (41) Relay Coupler [Grunt] (36) Relay Coupler [Specialist] (20) Relay Coupler [Behemoth] (17) Lightning Gun Pulse Rifle Heavy Ion Cannon Heavy Ion Cannon Assault Cannon Mini Grenade Launcher Improved Grenade Launcher Remote Datajack Plasma Cutter Powered Hammer Peak State ------------ > --- POWER ------------ Enhanced Nuclear Core > --- PROPULSION ------- Advanced Treads Medium Treads Armored Huge Wheel > --- UTILITY ---------- Huge Storage Unit Improved Sensor Array Improved Signal Interpreter Experimental Targeting Computer Transmission Jammer Hacking Suite > --- WEAPON ----------- Assault Cannon Powered Hammer > --- INVENTORY -------- Enhanced Nuclear Core Light Treads Light Treads Advanced Treads Armored Huge Wheel High-capacity Matter Pod Relay Coupler [NC] Relay Coupler [Grunt] Relay Coupler [Grunt] Relay Coupler [Grunt] Relay Coupler [Specialist] Relay Coupler [Behemoth] Lightning Gun Pulse Rifle Pulse Rifle Heavy Ion Cannon Heavy Ion Cannon Heavy Assault Rifle Assault Cannon Mini Grenade Launcher Improved Grenade Launcher Remote Datajack Plasma Cutter [Rating: 54] Favorites ----------- Power Light Deuterium Engine Engine Light Deuterium Engine Power Core Enhanced Nuclear Core Propulsion Light Treads Treads Light Treads Wheel Wheel Utility Huge Storage Unit Device Seismic Detector Storage Huge Storage Unit Processor Experimental Targeting Computer Hackware Relay Coupler [Grunt] Protection Core Shielding Weapon Heavy Assault Rifle Energy Gun Medium Laser Energy Cannon Heavy Ion Cannon Ballistic Gun Heavy Assault Rifle Ballistic Cannon Assault Cannon Launcher Mini Grenade Launcher Special Weapon Remote Datajack Impact Weapon Powered Hammer Build | -11 -10 -9 -9 -8 -8 -8 -8 -7 ------- Run | Yrd Mat Mat Min Mat Gar Mat Sto Fac Slots Evolved 6 | . . 2 . 2 . . . 2 Power . | . . . . . . . . . Propulsion 2 | . . 1 . 1 . . . . Utility 4 | . . 1 . 1 . . . 2 Weapon . | . . . . . . . . . Parts Attached 112 | 7 6 9 5 23 18 2 8 34 Power 15 | 1 1 1 . 2 1 1 1 7 Engine 9 | 1 1 1 . 2 1 1 1 1 Core 6 | . . . . . . . . 6 Reactor . | . . . . . . . . . Propulsion 38 | 2 2 3 1 10 6 1 4 9 Treads 28 | . 2 2 . 8 6 1 4 5 Leg . | . . . . . . . . . Wheel 10 | 2 . 1 1 2 . . . 4 Hover . | . . . . . . . . . Flight . | . . . . . . . . . Utility 30 | 2 2 2 1 4 6 . 2 11 Device 13 | 1 . 1 1 3 2 . . 5 Storage 4 | 1 2 . . . . . . 1 Processor 4 | . . . . . 1 . 1 2 Hackware 3 | . . . . . . . . 3 Protection 6 | . . 1 . 1 3 . 1 . Artifact . | . . . . . . . . . Weapon 29 | 2 1 3 3 7 5 . 1 7 Energy Gun 6 | 1 1 . 1 2 . . . 1 Energy Cannon 2 | . . 1 . . 1 . . . Ballistic Gun 13 | 1 . 1 1 3 2 . 1 4 Ballistic Cannon 3 | . . 1 . 1 . . . 1 Launcher 3 | . . . 1 1 1 . . . Special Weapon 1 | . . . . . . . . 1 Impact Weapon 1 | . . . . . 1 . . . Slashing Weapon . | . . . . . . . . . Piercing Weapon . | . . . . . . . . . Special Melee Weapon . | . . . . . . . . . Unidentified Prototypes 3 | . . . . 1 . . 1 1 Parts Lost 32 | . . . . 4 12 . . 16 Power 4 | . . . . . 2 . . 2 Propulsion 11 | . . . . . 6 . . 5 Utility 10 | . . . . 2 4 . . 4 Weapon 7 | . . . . 2 . . . 5 Highest Loss Streak 4 | . . . . 3 4 . . 3 To Critical Strikes . | . . . . . . . . . Average Backups 21 | 4 9 15 21 24 23 24 24 23 Power 1 | . 1 1 1 2 1 1 1 1 Propulsion 4 | 3 5 5 7 7 5 1 1 2 Utility 6 | . 1 4 6 6 6 10 10 7 Weapon 8 | . 1 4 7 8 7 9 10 9 Tool/Special . | . . . . . . . . . Unused Backups 43 | 4 . 1 . 8 2 3 1 24 Power 5 | . . 1 . 1 . 1 . 2 Propulsion 6 | 3 . . . 1 . . . 2 Utility 17 | . . . . 1 2 1 1 12 Weapon 14 | 1 . . . 5 . 1 . 7 Tool/Special 1 | . . . . . . . . 1 Average Slot Usage (%) 93 | . 98 99 100 98 97 98 90 87 Engine 6 | . 14 11 11 9 7 8 9 1 Core 1 | . . . . . . . . 5 Treads 21 | . 5 19 17 27 34 17 34 14 Wheel 7 | . 21 13 15 8 . 18 1 6 Device 11 | . 13 20 22 20 12 9 . 7 Storage 10 | . 14 11 11 9 9 9 9 10 Processor 9 | . . . . . 5 9 9 18 Hackware 1 | . . . . . . . . 3 Protection 3 | . . 1 . 4 8 9 9 . Energy Gun 2 | . 14 . 7 3 . . . . Ballistic Gun 8 | . 14 8 11 8 6 . 8 9 Ballistic Cannon 4 | . . 10 . 4 6 . 8 2 Peak Build Rating 54 | 7 8 12 14 28 32 31 33 54 Average Rating 29 | 5 7 10 12 21 25 29 32 44 On Entrance 17 | . 7 8 12 13 28 26 31 33 Naked Turns . | . . . . . . . . . Heaviest Build 111 | 13 88 94 93 99 102 98 108 111 Greatest Support 90 | 20 40 60 60 83 88 20 82 90 Greatest Overweight (x) 5 | . 4 4 4 4 4 4 5 4 Average Overweight (x) 2 | . 1 3 3 2 1 4 1 2 Largest Inventory Capacity 25 | 8 25 25 25 25 25 25 25 25 Average Capacity 23 | 7 16 25 25 25 25 25 25 25 Most Carried 25 | 7 14 22 23 25 25 25 25 25 Average Carried 21 | 4 9 15 21 24 22 24 24 23 Final Capacity 25 | 8 25 25 25 25 25 25 25 25 Final Carried 25 | 6 14 21 22 25 25 24 25 24 Class Distribution -------------------- 38% | Mutant 30% | Scavenger-Mutant 30% | Bothacker-Mutant Dominant Class ---------------- Mutant | -10/Materials Scavenger-Mutant | -9/Materials Scavenger-Mutant | -9/Mines Scavenger-Mutant | -8/Materials Scavenger-Mutant | -8/Garrison Scavenger-Mutant | -8/Materials Mutant | -8/Storage Bothacker-Mutant | -7/Factory Resources | -11 -10 -9 -9 -8 -8 -8 -8 -7 ----------- Run | Yrd Mat Mat Min Mat Gar Mat Sto Fac Matter Collected 4792 | 350 213 421 149 757 528 347 487 1540 Remotely 320 | . . . . 75 245 . . . Salvage Created 4384 | 282 430 207 19 888 600 147 560 1251 Parts 287 | 25 31 14 8 51 36 1 33 88 Haulers Intercepted 4 | . 1 1 . 2 . . . . Recyclers Shooed 1 | . 1 . . . . . . . Parts Field Recycled . | . . . . . . . . . Retrieved Matter . | . . . . . . . . . Parts Self-Destructed . | . . . . . . . . . Prevented . | . . . . . . . . . Kills | -11 -10 -9 -9 -8 -8 -8 -8 -7 ------- Run | Yrd Mat Mat Min Mat Gar Mat Sto Fac Combat Hostiles Destroyed 111 | . 11 6 4 23 24 1 10 32 Melee 4 | . . . . . 3 . . 1 Guns 54 | . 11 . . 9 3 . 4 27 Cannons 24 | . . 6 . 8 5 . 3 2 AOE 22 | . . . 4 5 10 . 3 . Classes Destroyed 18 | 3 4 1 . 3 4 . . 3 Worker 10 | 2 2 . . 2 . . . 4 Builder 2 | . . . . 1 . . . 1 Tunneler 10 | 8 1 . . . . 1 . . Hauler 4 | . 1 1 . 2 . . . . Recycler 8 | 1 1 . . 1 . 1 3 1 Operator 1 | . . . . . . . . 1 Watcher 6 | . 1 . . 1 . . 1 3 Swarmer 48 | . 9 4 4 9 7 . 3 12 Cutter 3 | . . . . . 3 . . . Grunt 23 | . 2 . . 8 4 1 2 6 Brawler 1 | . . . . 1 . . . . Duelist 4 | . . . . 1 2 . . 1 Sentry 13 | . . 2 . 4 2 . 4 1 Demolisher 2 | . . . . . . . . 2 Specialist 1 | . . . . . 1 . . . Hunter 3 | . . . . . 2 . 1 . Programmer 10 | . . . . . 3 . . 7 Assembled 3 | . . . . . . . . 3 Best Kill Streak 8 | 4 8 4 4 6 7 1 7 5 Combat Bots Only 7 | . 6 4 4 5 7 1 5 5 Max Kills in Single Turn 3 | 1 2 1 2 3 3 1 2 2 Gunslinging . | . . . . . . . . . Exploded 3 | . . . 2 2 3 . 2 . Melee 1 | . . . . . 1 . . 1 Uniques/NPCs Destroyed . | . . . . . . . . . Combat | -11 -10 -9 -9 -8 -8 -8 -8 -7 -------- Run | Yrd Mat Mat Min Mat Gar Mat Sto Fac Hostile Shots Fired 809 | . 35 19 6 145 188 9 51 356 Missed 237 | . 2 5 1 50 48 3 14 114 Hits 572 | . 33 14 5 95 140 6 37 242 Melee 60 | . . . . 16 19 . . 25 Projectile 512 | . 33 14 5 79 121 6 37 217 AOE 5 | . . . . . 2 . . 3 Critical Strikes 25 | . . 1 . 7 8 1 . 8 Part Disruptions 4 | . . . . . . . . 4 Damage Taken 7857 | . 309 125 56 1351 1950 98 482 3486 Core 1285 | . 101 32 15 162 253 . 20 702 Absorbed by Shields 713 | . . . . 347 160 . . 206 Redirected to Shielding 22 | . . . . . 22 . . . Regen/Repaired (Parts) 87 | . 87 . . . . . . . Core Remaining (%) 66 | 100 59 . 88 . . . 20 . Volleys Fired 392 | 30 36 18 3 78 59 . 24 144 Largest 2 | 2 2 2 2 2 2 . 2 2 Hottest 100 | 70 70 86 76 100 100 . 60 93 Shots Fired 687 | 60 71 31 6 144 98 3 46 228 Gun 461 | 60 71 9 4 90 40 . 23 164 Cannon 176 | . . 22 . 48 44 3 17 42 Launcher 29 | . . . 2 6 14 . 6 1 Special 21 | . . . . . . . . 21 Kinetic 510 | 30 36 27 3 114 69 . 40 191 Thermal 123 | 30 35 . 1 24 15 3 . 15 Explosive 29 | . . . 2 6 14 . 6 1 Electromagnetic 4 | . . 4 . . . . . . Robot Hit Streak 21 | 12 7 5 7 21 8 2 16 17 Robot Miss Streak 7 | 3 3 3 2 7 3 . 2 4 Penetration Max . | . . . . . . . . . Secondary Targets 6 | . . . . 2 . . . 4 Max Gunslinging Chain 1 | . . . . 1 . . . 1 Shots Hit Robots 472 | 38 42 17 4 96 71 5 35 164 Core Hits 223 | 12 21 10 5 48 36 . 25 66 Critical Kills 4 | . . . . . . . . 4 Critical Parts Destroyed 8 | . . . . . 2 . . 6 Critical Strikes 24 | 3 5 . . 2 4 . . 10 Burn 10 | 3 5 . . 1 1 . . . Destroy 8 | . . . . . . . . 8 Blast 2 | . . . . 1 1 . . . Smash 4 | . . . . . 2 . . 2 Melee Attacks 49 | . . . . . 35 7 . 7 Impact 49 | . . . . . 35 7 . 7 Slashing . | . . . . . . . . . Piercing . | . . . . . . . . . Sneak Attacks 2 | . . . . . . 2 . . Combat Hostiles . | . . . . . . . . . Follow-up Attacks . | . . . . . . . . . Damage Inflicted 10757 | 468 563 262 246 2149 2712 346 1032 2979 Guns 4805 | 468 563 71 31 902 382 . 280 2108 Cannons 2256 | . . 191 . 646 387 28 358 646 Explosions 2324 | . . . 215 601 1059 . 394 55 Melee 1369 | . . . . . 884 318 . 167 Ramming 3 | . . . . . . . . 3 Kinetic 5737 | 218 284 220 16 1230 615 . 638 2516 Thermal 1282 | 250 279 . 15 318 154 28 . 238 Explosive 2324 | . . . 215 601 1059 . 394 55 Electromagnetic 42 | . . 42 . . . . . . Impact 1369 | . . . . . 884 318 . 167 Slashing . | . . . . . . . . . Piercing . | . . . . . . . . . Highest Corruption 16 | . 7 . 1 3 12 12 16 9 Average Corruption 5 | . 1 . 1 2 3 12 12 6 Corruption Purged . | . . . . . . . . . Corruption Blocked . | . . . . . . . . . Effects 169 | . 8 . . 3 32 13 30 83 Message Errors 39 | . 1 . . . 5 2 9 22 Matter Fused 52 | . 4 . . 2 7 3 6 30 Heat Flow Errors 19 | . 1 . . . 3 1 4 10 Energy Discharges 24 | . . . . 1 9 3 3 8 Parts Rejected 2 | . . . . . 1 . . 1 Data Loss (minor) 14 | . 2 . . . 4 . 3 5 Data Loss (major) 6 | . . . . . 1 . 3 2 Misfires 8 | . . . . . 1 3 . 4 Alerts 1 | . . . . . . . 1 . Misdirections 1 | . . . . . . 1 . . Weapon Failures 3 | . . . . . 1 . 1 1 Overload Shots . | . . . . . . . . . Overflow Damage 603 | . . 16 . 33 291 182 22 59 Projectiles 37 | . . 16 . . . . 7 14 Explosions 65 | . . . . 33 17 . 15 . Melee 501 | . . . . . 274 182 . 45 Knockbacks 22 | . . . . 2 13 1 . 6 Impact 6 | . . . . . 5 1 . . Kinetic 12 | . . . . 2 4 . . 6 Secondary 4 | . . . . . 4 . . . Self-Inflicted Damage 255 | . . . . 88 114 . 41 12 Shots 9 | . . . . 3 4 . 1 1 Rammed 2 | . . . . . . . . 2 Targets Rammed 2 | . . . . . . . . 2 Kicked . | . . . . . . . . . Crushed . | . . . . . . . . . Highest Temperature 292 | 54 220 30 32 111 292 232 164 287 Average Temperature 53 | 18 44 9 10 28 102 134 37 75 Received Heat Transfer 1473 | . 66 9 . 361 120 72 81 764 Effects 3 | . . . . . . . . 3 Interference 3 | . . . . . . . . 3 Siege Activations . | . . . . . . . . . Martial Activations . | . . . . . . . . . Shielding Activations . | . . . . . . . . . Robots Disrupted . | . . . . . . . . . Combat Hostiles . | . . . . . . . . . Robots Corrupted 6 | . . . . . 2 2 . 2 Combat Hostiles 5 | . . . . . 2 1 . 2 Parts Fried 5 | . . . . . . 5 . . Impact Corruptions 23 | . . . . . 15 6 . 2 Robots Melted 2 | . . . . 1 1 . . . Combat Hostiles 2 | . . . . 1 1 . . . Parts Melted 10 | 1 2 . . . 6 . . 1 Heat Transferred 3755 | 962 1184 . 37 703 351 37 . 481 Parts Sabotaged . | . . . . . . . . . Parts Stolen . | . . . . . . . . . Parts Stripped . | . . . . . . . . . Power Chain Reactions . | . . . . . . . . . Alert | -11 -10 -9 -9 -8 -8 -8 -8 -7 ------- Run | Yrd Mat Mat Min Mat Gar Mat Sto Fac Maximum Alert Level 4 | . . . . 1 4 2 1 2 Low Security (%) 64 | 100 100 100 100 95 3 . 32 74 Level 1 20 | . . . . 4 29 . 67 25 Level 2 5 | . . . . . 8 100 . . Level 3 9 | . . . . . 55 . . . Level 4 . | . . . . . 2 . . . Level 5 . | . . . . . . . . . High Security . | . . . . . . . . . Max Security . | . . . . . . . . . Peak Influence 1159 | 10 185 111 115 231 1159 564 366 484 Initial 564 | . . 29 . . 149 564 185 102 Average 221 | 1 87 24 28 94 677 487 256 118 Influence Increases 3926 | 55 364 201 115 684 1130 46 398 933 Destroy 0b10 Robot/C 2180 | . 220 120 80 460 480 20 200 600 Destroy 0b10 Robot/NC 205 | 55 30 5 . 35 . 10 20 50 Destroy Leader 430 | . 44 32 10 106 30 . 62 146 Allied During Kill 1 | . . . . . . . . 1 Successful Hack 103 | . 9 13 . 3 40 . 16 22 Disable Machine 150 | . . 15 15 15 . 15 45 45 Anti-Garrison Action 350 | . . . . . 350 . . . Destroy Structure 222 | . 1 1 10 50 110 1 40 9 Partial Spotted 15 | . . . . . . . . 15 Lose Combat Pursuer 270 | . 60 15 . 15 120 . 15 45 Influence Decreases 3453 | 55 294 271 115 454 201 765 611 687 Entered New Map 1097 | . . 41 . . 81 595 255 125 Time Decay 2056 | 55 294 230 115 414 . 170 356 422 Lost Part 280 | . . . . 40 120 . . 120 Lost Ally 20 | . . . . . . . . 20 Squads Dispatched 17 | . 1 . . 3 . . . 13 Investigation 2 | . . . . . . . . 2 Extermination 7 | . . . . . . . . 7 Reinforcement 6 | . 1 . . 1 . . . 4 Assault . | . . . . . . . . . Garrison 2 | . . . . 2 . . . . Intercept . | . . . . . . . . . Searches Triggered . | . . . . . . . . . Construction Impeded . | . . . . . . . . . Haulers Reinforced . | . . . . . . . . . Active Scanning Responses . | . . . . . . . . . Cargo Convoy Interrupts 1 | . . . . . . . . 1 Stealth | -11 -10 -9 -9 -8 -8 -8 -8 -7 --------- Run | Yrd Mat Mat Min Mat Gar Mat Sto Fac Distress Signals 4 | . . . . 2 . 1 1 . Communications Jammed . | . . . . . . . . . Distress Signals . | . . . . . . . . . Times Spotted 172 | . 18 10 4 34 29 4 12 61 Peak Tracking Total 9 | . 4 4 4 6 6 3 7 9 Tactical Retreats 15 | . 2 1 . 1 6 . 1 4 Traps | -11 -10 -9 -9 -8 -8 -8 -8 -7 ------- Run | Yrd Mat Mat Min Mat Gar Mat Sto Fac Traps Triggered 15 | . 5 . . . 5 . 2 3 Indirectly . | . . . . . . . . . Trap Hack Attempts . | . . . . . . . . . Triggered . | . . . . . . . . . Disarmed . | . . . . . . . . . Reprogrammed . | . . . . . . . . . Reused . | . . . . . . . . . Traps Extracted . | . . . . . . . . . Installed . | . . . . . . . . . Triggered . | . . . . . . . . . Machines | -11 -10 -9 -9 -8 -8 -8 -8 -7 ---------- Run | Yrd Mat Mat Min Mat Gar Mat Sto Fac Machines Disabled 13 | . . 1 1 1 3 1 3 3 Max in Single Turn 1 | . . 1 1 1 1 1 1 1 Garrison Relay 3 | . . . . . 3 . . . Machines Repaired . | . . . . . . . . . Machines Dismantled . | . . . . . . . . . Machines Sabotaged . | . . . . . . . . . Overloaded Fab Kills . | . . . . . . . . . Hacking | -11 -10 -9 -9 -8 -8 -8 -8 -7 --------- Run | Yrd Mat Mat Min Mat Gar Mat Sto Fac Machines Accessed 29 | . 5 3 1 6 3 2 4 5 Terminals 23 | . 4 3 . 5 3 . 4 4 Fabricators 1 | . . . . . . . . 1 Repair Stations 2 | . 1 . . . . 1 . . Recycling Units 1 | . . . . . . 1 . . Scanalyzers . | . . . . . . . . . Garrison Access 1 | . . . . 1 . . . . Total Hacks 73 | . 22 8 1 9 5 7 10 11 Successful 37 | . 13 4 1 6 3 3 3 4 Failed 36 | . 9 4 . 3 2 4 7 7 Catastrophic 7 | . 1 1 . . . . 4 1 Database Lockouts . | . . . . . . . . . Manual 46 | . 14 8 . 10 2 . 8 4 Terminals 59 | . 19 8 . 8 5 . 10 9 Fabricators 2 | . . . . . . . . 2 Repair Stations 7 | . 3 . . . . 4 . . Recycling Units 3 | . . . . . . 3 . . Scanalyzers . | . . . . . . . . . Garrison Access 1 | . . . . 1 . . . . Terminal Hacks 15 | . 7 1 1 1 2 . 1 2 Robot Analysis 5 | . 3 . . 1 . . . 1 Prototype ID Bank 5 | . 4 1 . . . . . . Open Door 2 | . . . 1 . . . 1 . Emergency Access Points 1 | . . . . . 1 . . . Zone Layout 1 | . . . . . . . . 1 Security Stations 1 | . . . . . 1 . . . Fabricator Hacks . | . . . . . . . . . Repair Station Hacks 4 | . 2 . . . . 2 . . Scan Component 2 | . 1 . . . . 1 . . Repair 2 | . 1 . . . . 1 . . Recycling Unit Hacks 1 | . . . . . . 1 . . Retrieve Matter 1 | . . . . . . 1 . . Scanalyzer . | . . . . . . . . . Garrison Access Hacks 1 | . . . . 1 . . . . Unlock Access 1 | . . . . 1 . . . . Unauthorized Hacks 16 | . 4 3 . 4 1 . 2 2 Terminals 16 | . 4 3 . 4 1 . 2 2 Botnet 16 | . 4 3 . 4 1 . 2 2 Fabricators . | . . . . . . . . . Repair Stations . | . . . . . . . . . Recycling Units . | . . . . . . . . . Scanalyzers . | . . . . . . . . . Garrison Access . | . . . . . . . . . Data Cores Recovered 1 | . . . . . . . . 1 Used . | . . . . . . . . . Hacking Detections 21 | . 5 1 . 4 2 1 4 4 Full Trace Events 2 | . 1 . . . . . . 1 Feedback Events 1 | . 1 . . . . . . . Corruption 1 | . 1 . . . . . . . Feedback Blocked . | . . . . . . . . . Robot Schematics Acquired . | . . . . . . . . . Robots Built . | . . . . . . . . . Authchips . | . . . . . . . . . Time . | . . . . . . . . . Total Robot Build Rating . | . . . . . . . . . Part Schematics Acquired . | . . . . . . . . . Parts Built . | . . . . . . . . . Authchips . | . . . . . . . . . Time . | . . . . . . . . . Total Part Build Rating . | . . . . . . . . . Parts Repaired 1 | . 1 . . . . . . . Time 52 | . 26 . . . . 26 . . Parts Recycled . | . . . . . . . . . Recycled Matter . | . . . . . . . . . Retrieved Matter . | . . . . . . . . . Retrieved Components . | . . . . . . . . . Parts Scanalyzed . | . . . . . . . . . Part Schematics Acquired . | . . . . . . . . . Parts Damaged . | . . . . . . . . . Bothacking | -11 -10 -9 -9 -8 -8 -8 -8 -7 ------------ Run | Yrd Mat Mat Min Mat Gar Mat Sto Fac Used RIF Installer 1 | . . . . . 1 . . . Robots Hacked 9 | . . . . . . . . 9 Non-combat 2 | . . . . . . . . 2 Combat 7 | . . . . . . . . 7 Robot Hacks Applied 13 | . . . . . . . . 13 parse_system 2 | . . . . . . . . 2 no_distress 1 | . . . . . . . . 1 generate_echo 1 | . . . . . . . . 1 locate_stockpiles 1 | . . . . . . . . 1 link_fov 1 | . . . . . . . . 1 scatter_targeting 3 | . . . . . . . . 3 overwrite_iff 2 | . . . . . . . . 2 streamctrl_low 1 | . . . . . . . . 1 streamctrl_high 1 | . . . . . . . . 1 Relay Couplers Released 13 | . . . . . 13 . . . Machine Destruction 13 | . . . . . 13 . . . Attached 2 | . . . . . . . . 2 Fabnet Peak Effective % . | . . . . . . . . . Robots Rewired . | . . . . . . . . . Allies Hacked . | . . . . . . . . . Hacks Repelled . | . . . . . . . . . Allies | -11 -10 -9 -9 -8 -8 -8 -8 -7 -------- Run | Yrd Mat Mat Min Mat Gar Mat Sto Fac Total Allies 4 | . . . . . . . . 4 Largest Group 1 | . . . . . . . . 1 Highest-Rated Group 16 | . . . . . . . . 16 Highest-Rated Ally 16 | . . . . . . . . 16 Total Orders 1 | . . . . . . . . 1 DROP 1 | . . . . . . . . 1 Ally Attacks 15 | . . . . . . . . 15 Total Damage 202 | . . . . . . . . 202 Kills 1 | . . . . . . . . 1 Allies Corrupted . | . . . . . . . . . Allies Melted . | . . . . . . . . . Intel | -11 -10 -9 -9 -8 -8 -8 -8 -7 ------- Run | Yrd Mat Mat Min Mat Gar Mat Sto Fac Active Infowar (turns) 6726 | 3 743 708 483 1044 1374 . . 2371 Sensors 1524 | . . . . . 1 . . 1523 Terrain 1944 | . . 638 483 823 . . . . Structural 221 | . . . . 221 . . . . Seismic 3934 | 3 743 708 483 624 1373 . . . Jamming 860 | . . . . . . . . 860 Robot Analysis Total 5 | . 3 . . 1 . . . 1 Derelict Logs Recovered 2 | . . . 2 . . . . . Drone Launches . | . . . . . . . . . Drone Recoveries . | . . . . . . . . . Exploration | -11 -10 -9 -9 -8 -8 -8 -8 -7 ------------- Run | Yrd Mat Mat Min Mat Gar Mat Sto Fac Turns Passed 10427 | 280 790 708 483 1308 1847 358 806 3847 Spaces Moved 5034 | 172 525 373 290 512 620 224 292 2026 Core 2 | 2 . . . . . . . . Treads 1579 | . 36 97 56 225 574 . 278 313 Legs . | . . . . . . . . . Wheels 3453 | 170 489 276 234 287 46 224 14 1713 Hover . | . . . . . . . . . Flight . | . . . . . . . . . Fastest Speed 50 | 50 80 140 140 140 140 140 140 115 Average Speed 165 | 79 106 166 159 186 229 140 231 158 Slowest Speed 480 | 80 160 240 240 480 240 140 236 480 Overloaded Moves . | . . . . . . . . . Propulsion Burnouts . | . . . . . . . . . Robots Hopped . | . . . . . . . . . Potential Cave-ins . | . . . . . . . . . Cave-ins Triggered . | . . . . . . . . . Exploration Rate (%) 41 | 5 68 21 63 38 65 17 43 52 Regions Visited 8 Branch Regions 2 Pre-discovered Areas . | . . . . . . . . . Known Exits Taken 2 | . . . . 1 . . 1 . Unknown Exits Taken 5 | 1 1 1 1 . . 1 . . Scrap Searched 2 | . . . 2 . . . . . Spaces Dug 14 | . . . . 10 . . . 4 Terrain Destroyed 169 | . . . 16 62 44 1 41 5 Melee . | . . . . . . . . . Projectile 3 | . . . . 1 . 1 . 1 AOE 166 | . . . 16 61 44 . 41 4 Terrain Rammed . | . . . . . . . . . Walls Destroyed . | . . . . . . . . . Machines Disabled . | . . . . . . . . . Actions | -11 -10 -9 -9 -8 -8 -8 -8 -7 --------- Run | Yrd Mat Mat Min Mat Gar Mat Sto Fac Total 6398 | 253 683 428 304 739 893 261 379 2458 Wait 525 | 30 100 4 3 63 118 16 30 161 Move 5025 | 171 524 372 289 511 618 223 291 2026 Hop . | . . . . . . . . . Pick Up 122 | 11 9 12 1 27 21 6 7 28 Fast Attach 26 | 6 . . . 2 2 1 4 11 Attach 46 | 1 2 2 . 6 14 1 1 19 Detach 7 | . 1 . . . . . 2 4 Swap 106 | . 7 16 6 24 15 . 8 30 Drop 96 | 4 4 4 2 28 9 7 12 26 Fire 392 | 30 36 18 3 78 59 . 24 144 Melee 49 | . . . . . 35 7 . 7 Ram . | . . . . . . . . . Kick . | . . . . . . . . . Crush 2 | . . . . . . . . 2 Escape Stasis 2 | . . . . . 2 . . . Rewire . | . . . . . . . . . Trap . | . . . . . . . . . Miscellaneous . | . . . . . . . . . Route ------- -11/Scrapyard -10/Materials (discovered 2 exits: *Mat x2) -9/Materials -9/Mines -8/Materials (discovered 3 exits: *Fac x2 / Gar) -8/Garrison -8/Materials -8/Storage -7/Factory History --------- Turn | Location | Event 7 | -11/Scrapyard | Discovered new exit (range 15) 281 | -11/Scrapyard | Entered Materials 308 | -10/Materials | Build established: Mutant 400 | -10/Materials | Discovered new exit (range 8) 608 | -10/Materials | Repaired Lgt. Treads 999 | -10/Materials | Discovered new exit (range 12) 1071 | -10/Materials | Entered another Materials area 1071 | -9/Materials | Evolved 2 slots: Propulsion x1, Utility x1 1406 | -9/Materials | Discovered new exit (range 11) 1559 | -9/Materials | Build established: Scavenger-Mutant 1779 | -9/Materials | Entered Mines 2018 | -9/Mines | Met a Derelict who couldn't figure out how to use a Trap Extractor 2069 | -9/Mines | Learned 8 Materials zone layouts 2110 | -9/Mines | Learned Materials terminal intel 2135 | -9/Mines | Discovered new exit (range 8) 2262 | -9/Mines | Entered Materials 2262 | -8/Materials | Evolved 2 slots: Propulsion x1, Utility x1 2263 | -8/Materials | Identified exit to Factory 2264 | -8/Materials | Loaded intel: 12 terminal locations 3272 | -8/Materials | Discovered exit to Factory (range 12) 3440 | -8/Materials | Garrison activated, responded to threat 3486 | -8/Materials | Build established: Mutant 3492 | -8/Materials | Lost 3 parts (1u2w) 3567 | -8/Materials | Identified exit to Garrison 3570 | -8/Materials | Entered Garrison 3628 | -8/Garrison | Triggered checkpoint 3820 | -8/Garrison | Garrison Relay disabled 4048 | -8/Garrison | Triggered checkpoint 4188 | -8/Garrison | Triggered checkpoint 4336 | -8/Garrison | Core integrity fell below 50% 4359 | -8/Garrison | Destroyed 7 combat bots 4365 | -8/Garrison | Lost 4 parts (1p1n2u) 4438 | -8/Garrison | Triggered checkpoint 4483 | -8/Garrison | Lost 3 parts (2n1u) 4515 | -8/Garrison | Installed Relay Interface Framework 4544 | -8/Garrison | Garrison Relay disabled 4750 | -8/Garrison | Build established: Scavenger-Mutant 5012 | -8/Garrison | Triggered checkpoint 5037 | -8/Garrison | Garrison Relay disabled 5126 | -8/Garrison | Learned Materials security intel 5294 | -8/Garrison | System corruption reached 10% 5339 | -8/Garrison | Lost 4 parts (3n1u) 5407 | -8/Garrison | Discovered new exit (range 5) 5417 | -8/Garrison | Entered Materials 5417 | -8/Materials | Discovered new exit (range 8) 5775 | -8/Materials | Entered Storage 5873 | -8/Storage | Found Prototype Processor 5873 | -8/Storage | Identified Exp. Targeting Computer 6091 | -8/Storage | Build established: Mutant 6543 | -8/Storage | Discovered exit to Factory (range 16) 6581 | -8/Storage | Entered Factory 6581 | -7/Factory | Evolved 2 slots: Utility x2 7529 | -7/Factory | Build established: Bothacker-Mutant 7757 | -7/Factory | Cargo convoy interrupted 7978 | -7/Factory | Assembled infested ambush trap array 8055 | -7/Factory | Lost 3 parts (1n2u) 8246 | -7/Factory | Core integrity fell below 50% 9956 | -7/Factory | Core integrity fell below 20% 10428 | -7/Factory | Destroyed by Y-54 Guardian with Gatling Laser Last Messages --------------- 10347_ Acquired Imp. Sensor Array. 10350_ N,1VYTD|/FWEFVXICCBD1OALKT 10377_ System corrupted: Matter fused (-5). 10394_ K-01 Serf cleans the Terminal. 10397_ U-05 Engineer lays Concrete. 10399_ U-05 Engineer destroyed. 10402_ S-27 Virus destroyed. 10402_ Switching to secondary target: S-27 Virus. 10405_ #A8FYDVRN1R=F#/MWU<12&&RJN 10406_ K-01 Serf collects debris. 10407_ S-27 Virus destroyed. 10407_ Switching to secondary target: Y-54 Guardian. 10409_ K-01 Serf collects debris. 10413_ S-27 Virus destroyed. 10413_ Switching to secondary target: Y-54 Guardian. 10413_ K-01 Serf destroyed. 10415_ Pulse Rifle destroyed. 10417_ Y-54 Guardian suffers critical hit (Destroy). 10417_ Destroyed Lgt. Treads. 10422_ System corrupted: Heat flow error (+196). Map ----- +----------------------------------------------------+ | ?? !## # # | | ?? =!! + """" # # | | ??? =!! ## """" # # | | ??? !! ## """" # # | | ????#######/####### ## """" ################### | | ??????????????????# ## ! """" #??????????????????? | | ??????????????????# ## """" #??????????????????? | | ??????????????????# ## """" #??????????????????? | | ??????????????????# ##[ #?????????????=????? | | ??????????????????# ## """" #??????????????????? | | ??????????????????? ## / """" #??????????????????? | | ??????????????????# ## """" #??????????????????? | | ??????????????????+ + """" #??????????????????? | | ??????????????????#### """" #??????????????????? | | ?????????????????????# """" #??????????????????? | | ?????????????????????# """" #??????????????????? | | ?????????????????????# #??????????????????? | | ?????????????????????####+#####??????????????????? | | ????????????????????????#%#??????????????????????? | | ????????????????????????#*#??????????????????????? | | ????????????????????????# #??????????????????????? | | ????????????????????????# #??????????????????????? | | ????????????????????????# #??????????????????????? | | ????????????????????????# #??????????????????????? | | ????????????????????????# #??????????????????????? | | ?????????????# ######@#??????????????????????? | | ?????????????+ ==%#??????????????????????? | | ?????????????# ## =%Y ??????????????????????? | | ????????????????????# =* ??????????????????????? | | ????????????????????# ?????????????????????? | | ???????????????????#T !?????????????????????? | | ???????????????????## =="????????????????????? | | ????????????????????# #%!????????????????????? | | ????????????????????# +!| ???????????????????? | | ????????????????????# #* ???????????????????? | | ????????????????????# ? ??????????????????? | | ????????????????????# ?####??????????????????? | | ????????????????????# ???????????????????????? | | ????????????????????# ???????????????????????? | | ????????????????????# r???????????????????????? | | ????????????????????? ???????????????????????? | | ??????????????????????? ???????????????????????? | | ?????????????????????????????????????????????????? | | ?????????????????????????????????????????????????? | | ?????????????????????????????????????????????????? | | ?????????????????????????????????????????????????? | | ?????????????????????????????????????????????????? | | ?????????????????????????????????????????????????? | | ?????????????????????????????????????????????????? | | ?????????????????????????????????????????????????? | +----------------------------------------------------+ Best States ------------- Heat Dissipation 45 Energy Generation 17 Energy Capacity 300 Matter Stores 500 Matter Capacity 500 Sight Range 16 Robot Scan Range 15 Terrain Scan Range 14 Terrain Scan Density 10 Jamming Range 12 Armor Coverage 600 Core Shielding 20 Evasion (%) 44 Targeting Accuracy 12 Target Analysis 5 Recoil Reduction 4 Offensive Hacking 10 Relay Coupler Types 1 Relay Coupler Value 29 Item Schematics ----------------- None Robot Schematics ------------------ None Fabricated ------------ Nothing Repaired ---------- Lgt. Treads | 37% | -10/Materials Alien Tech Used ----------------- None Achievements -------------- None Challenges ------------ None Game ------ Seed BlanketExplosiveArticulator Manual? 0 Play Time 01:34:05 Cumulative 57.5 hours Start 2025.06.03 @ 18:11:34 End 2025.06.03 @ 19:46:47 Sessions 1 Manual Loads 0 Difficulty Rogue Special Mode None Game No. 68 Rogue 68 Adventurer 0 Explorer 0 Win Type - Total 0 Types 0/0/0/0/0/0/0/0/0/0 Lore% 50 Gallery% 34 Achievement% 34 Wizard Run 0 Options --------- Layout 0 ASCII 0 Keyboard 1 Movement Vi Keybinds 0 Fullscreen 1 Font 18/SmallcapsGlow Map View 76x50 Zoom Use 0% Tactical HUD 1 Map Filters NONE Filters NONE Steam 1 RUN: ffea487c-ea6b-42bd-af9f-a6368fe28239